{"text_format":"1","workbook":"xlsx","n_sheets":2,"sheets":["1059","1059 (an)"],"not_rendered":{"charts":0,"images":0,"macros":0,"external_links":0,"defined_names":0,"comments":0,"pivot_tables":0},"unopened":[],"bounds":{"document_bytes":16777216,"sheet_cells":100000,"rows_first":2000,"rows_last":500,"rows_between":2000,"halvings":0,"cell_chars":16384,"cell_head_chars":4096},"cells_cut":0,"cells_raw":0,"read":"whole","date_system":"1900"}

{"sheet":"1059","index":0,"n_rows":21,"n_cols":6,"rows_kept":21,"cut":false,"hidden":false,"merged":[]}
["How to conditionally format numbers that are in top 5, but must be greater than 65?"]
[]
[{"$f":"\"Conditionally Format top \"&F6&\", but must be over \"&F5","v":"Conditionally Format top 5, but must be over 65"}]
[]
["Numbers",null,"Test",null,"Hurdle",65]
[{"$f":"RANDBETWEEN(0,100)","v":20},null,null,null,"Top",5]
[{"$f":"RANDBETWEEN(0,100)","v":71}]
[7]
[7]
[6]
[27]
[27]
[24]
[88]
[66]
[14]
[3]
[36]
[17]
[12]
[61]

{"sheet":"1059 (an)","index":1,"n_rows":21,"n_cols":6,"rows_kept":21,"cut":false,"hidden":false,"merged":[]}
["How to conditionally format numbers that are in top 5, but must be greater than 65?"]
[]
[{"$f":"\"Conditionally Format top \"&F6&\", but must be over \"&F5","v":"Conditionally Format top 5, but must be over 65"}]
[]
["Numbers",null,"Test",null,"Hurdle",65]
[{"$f":"RANDBETWEEN(0,100)","v":39},null,{"$f":"AND(A6>$F$5,A6>=LARGE($A$6:$A$21,$F$6))","v":false},null,"Top",5]
[{"$f":"RANDBETWEEN(0,100)","v":71},null,{"$f":"AND(A7>$F$5,A7>=LARGE($A$6:$A$21,$F$6))","v":true}]
[70,null,true]
[39,null,false]
[47,null,false]
[86,null,true]
[49,null,false]
[63,null,false]
[31,null,false]
[51,null,false]
[57,null,false]
[84,null,true]
[67,null,true]
[2,null,false]
[3,null,false]
[62,null,false]